Workbook

Sheet Instruções
C3: SIMULADOR DE CUSTOS COM RECURSOS HUMANOS
C4: Instruções
H6: Versão | I6: 2023-02-07
B8: Para que o simulador funcione corretamente, é necessário seguir os seguintes passos:
B10: 1. Depois de descarregar o ficheiro, desbloquer o mesmo.
B33: 2. Abrir o ficheiro e clicar em "Ativar Edição".

Sheet Contrato de Trabalho
C3: SIMULADOR DE CUSTOS COM RECURSOS HUMANOS
C4: Contrato de Trabalho
M6: Versão | N6: 2023-04-19
B8: Pressupostos de Contratação
B10: Tipo de Termo | C10: Certo
B12: Nos termos do Art.º 60º da Lei Geral do Trabalho em Funções Públicas (LTFP):
B13: 1. O contrato a termo certo dura até 3 anos (36 meses), incluido renovações. Este contrato não pode ser renovado mais do que 2 vezes.
B14: 2. O contrato a termo incerto dura por todo o tempo necessário para a substituição do trabalhador ausente ou para a conclusão da tarefa ou serviço cuja execução justifica a celebração.
B16: Duração (meses) | C16: 12
B18: Categoria Profissional | C18: Técnico Superior
B20: Nos termos do Art.º 88º da LTFP, as carreiras gerais são as de Técnico Superior, de Assistente Técnico, e de Assistente Operacional.
B21: Nos termos do Art.º 86º e do ponto 2 do Art.º 88º, ambos da LTFP:
B22: 1. Os Técnicos Superiores são titulares de licenciatura ou de grau académico superior a esta; e auferem, no minimo, ao equivalente à posição 16 da Tabela Remuneratória Única.
B23: 2. Os Assistentes Técnicos são titulares do 12.º ano de escolaridade ou de curso equiparado; e auferem, no minimo, ao equivalente à posição 6 da Tabela Remuneratória Única.
B25: Tem ou Terá Grau de Doutor? | C25: Não
B27: Nos termos do Art.º 39º - B da LTFP, os Técnicos Superiores que tenham ou venham a ter o grau de doutor auferem o equivalente ao nivel 23 da Tabela Remuneratória Única; ou, caso já aufiram o equivalente ao referido nível, passam a estar enquadrados na posição imediatamente seguinte àquela em que se encontra.
B29: Posição Remuneratória | C29: 16 - 1333,35 | F29: =INT(LEFT(C29,(FIND(" ",C29,1)-1))) -> 16
B31: Data de Início (Mês/Ano) | C31: 2023-03-01
B33: Taxa de IRS | C33: 0.07
B35: Segurança Social - Funcionário | C35: 0.11
B37: A Taxa de IRS deverá ser preenchida conforme a aplicável para o trabalhador. Neste contexto poderão ser consultadas as tabelas em vigor aqui: https://info.portaldasfinancas.gov.pt/pt/apoio_contribuinte/tabela_ret_doclib/Pages/default.aspx
B39: Estimativas
B41: Para o contrato a termo incerto, é apresentada a estimativa para um ano completo de contrato.
B42: O Seguro de Acidentes de Trabalho foi assumido como sendo 2% do Vencimento Base, no entanto esse valor poderá variar conforme as condições de mercado.
B44: Data | C44: Vencimento Base | D44: Subsídio de Alimentação | E44: Renumeração Complementar | F44: Subsídio de Natal | G44: Subsídio de Férias | H44: Compensação Termo Contrato | I44: Encargos Seg. Social | J44: Seguro de Ac. de Trabalho | L44: IRS Retido | M44: Segurança Social | N44: Vencimento Líquido
C45: CE 010106D000 | D45: CE 010113D000 | E45: CE 010213RC00 | F45: CE 010114SNDO | G45: CE 010114SFDO | H45: CE 010212 | I45: CE 010305A0B0 | J45: CE 010309
A47: 1 | B47: =C31 -> 2023-03-01 | C47: =IF(A47<=$C$16,INDEX('CT - Tabela'!$C$5:$C$119,MATCH($F$29,'CT - Tabela'!$B$5:$B$119,0)),0) -> 1333.35 | D47: =IF(AND(A47<=$C$16,MONTH(B47)<>6),22*6,0) -> 132 | E47: =IF(A47<=$C$16,INDEX('CT - Tabela'!$D$5:$D$119,MATCH($F$29,'CT - Tabela'!$B$5:$B$119,0)),0) -> 0 | F47: =IF(MONTH(B47)=11,C47+E47,0) -> 0 | G47: =IF(MONTH(B47)=6,C47+E47,0) -> 0 | H47: =IF(A47=$C$16,C47/30*2*fldDuracao,0) -> 0 | I47: =(C47+E47+F47+G47)*22.3% -> 297.33705 | J47: =2%*C47 -> 26.667 | K47: =YEAR(B47) -> 2023 | L47: =((C47+E47+F47+G47+IF(H47>6500,H47-6500,0))*$C$33) -> 93.3345 | M47: =(C47+E47+F47+G47)*$C$35 -> 146.6685 | N47: =SUM(C47:H47)-SUM(L47:M47) -> 1225.347
A48: =+A47+1 -> 2 | B48: =DATE(YEAR(B47),MONTH(B47)+1,DAY(B47)) -> 2023-04-01 | C48: =IF(A48<=$C$16,INDEX('CT - Tabela'!$C$5:$C$119,MATCH($F$29,'CT - Tabela'!$B$5:$B$119,0)),0) -> 1333.35 | D48: =IF(AND(A48<=$C$16,MONTH(B48)<>6),22*6,0) -> 132 | E48: =IF(A48<=$C$16,INDEX('CT - Tabela'!$D$5:$D$119,MATCH($F$29,'CT - Tabela'!$B$5:$B$119,0)),0) -> 0 | F48: =IF(MONTH(B48)=11,C48+E48,0) -> 0 | G48: =IF(MONTH(B48)=6,C48+E48,0) -> 0 | H48: 0 | I48: =(C48+E48+F48+G48)*22.3% -> 297.33705 | J48: =2%*C48 -> 26.667 | K48: =YEAR(B48) -> 2023 | L48: =((C48+E48+F48+G48+IF(H48>6500,H48-6500,0))*$C$33) -> 93.3345 | M48: =(C48+E48+F48+G48)*$C$35 -> 146.6685 | N48: =SUM(C48:H48)-SUM(L48:M48) -> 1225.347
A49: =+A48+1 -> 3 | B49: =DATE(YEAR(B48),MONTH(B48)+1,DAY(B48)) -> 2023-05-01 | C49: =IF(A49<=$C$16,INDEX('CT - Tabela'!$C$5:$C$119,MATCH($F$29,'CT - Tabela'!$B$5:$B$119,0)),0) -> 1333.35 | D49: 132 | E49: =IF(A49<=$C$16,INDEX('CT - Tabela'!$D$5:$D$119,MATCH($F$29,'CT - Tabela'!$B$5:$B$119,0)),0) -> 0 | F49: 0 | G49: 0 | H49: 0 | I49: 297.33705 | J49: 26.667 | K49: 2023 | L49: 93.3345 | M49: 146.6685 | N49: 1225.347
A50: 4 | B50: 2023-06-01 | C50: =IF(A50<=$C$16,INDEX('CT - Tabela'!$C$5:$C$119,MATCH($F$29,'CT - Tabela'!$B$5:$B$119,0)),0) -> 1333.35 | D50: 0 | E50: =IF(A50<=$C$16,INDEX('CT - Tabela'!$D$5:$D$119,MATCH($F$29,'CT - Tabela'!$B$5:$B$119,0)),0) -> 0 | F50: 0 | G50: 1333.35 | H50: 0 | I50: 594.6741 | J50: 26.667 | K50: 2023 | L50: 186.669 | M50: 293.337 | N50: 2186.694
A51: 5 | B51: 2023-07-01 | C51: =IF(A51<=$C$16,INDEX('CT - Tabela'!$C$5:$C$119,MATCH($F$29,'CT - Tabela'!$B$5:$B$119,0)),0) -> 1333.35 | D51: 132 | E51: =IF(A51<=$C$16,INDEX('CT - Tabela'!$D$5:$D$119,MATCH($F$29,'CT - Tabela'!$B$5:$B$119,0)),0) -> 0 | F51: 0 | G51: 0 | H51: 0 | I51: 297.33705 | J51: 26.667 | K51: 2023 | L51: 93.3345 | M51: 146.6685 | N51: 1225.347
A52: 6 | B52: 2023-08-01 | C52: =IF(A52<=$C$16,INDEX('CT - Tabela'!$C$5:$C$119,MATCH($F$29,'CT - Tabela'!$B$5:$B$119,0)),0) -> 1333.35 | D52: 132 | E52: =IF(A52<=$C$16,INDEX('CT - Tabela'!$D$5:$D$119,MATCH($F$29,'CT - Tabela'!$B$5:$B$119,0)),0) -> 0 | F52: 0 | G52: 0 | H52: 0 | I52: 297.33705 | J52: 26.667 | K52: 2023 | L52: 93.3345 | M52: 146.6685 | N52: 1225.347
A53: 7 | B53: 2023-09-01 | C53: =IF(A53<=$C$16,INDEX('CT - Tabela'!$C$5:$C$119,MATCH($F$29,'CT - Tabela'!$B$5:$B$119,0)),0) -> 1333.35 | D53: 132 | E53: =IF(A53<=$C$16,INDEX('CT - Tabela'!$D$5:$D$119,MATCH($F$29,'CT - Tabela'!$B$5:$B$119,0)),0) -> 0 | F53: 0 | G53: 0 | H53: 0 | I53: 297.33705 | J53: 26.667 | K53: 2023 | L53: 93.3345 | M53: 146.6685 | N53: 1225.347
A54: 8 | B54: 2023-10-01 | C54: =IF(A54<=$C$16,INDEX('CT - Tabela'!$C$5:$C$119,MATCH($F$29,'CT - Tabela'!$B$5:$B$119,0)),0) -> 1333.35 | D54: 132 | E54: =IF(A54<=$C$16,INDEX('CT - Tabela'!$D$5:$D$119,MATCH($F$29,'CT - Tabela'!$B$5:$B$119,0)),0) -> 0 | F54: 0 | G54: 0 | H54: 0 | I54: 297.33705 | J54: 26.667 | K54: 2023 | L54: 93.3345 | M54: 146.6685 | N54: 1225.347
A55: 9 | B55: 2023-11-01 | C55: =IF(A55<=$C$16,INDEX('CT - Tabela'!$C$5:$C$119,MATCH($F$29,'CT - Tabela'!$B$5:$B$119,0)),0) -> 1333.35 | D55: 132 | E55: =IF(A55<=$C$16,INDEX('CT - Tabela'!$D$5:$D$119,MATCH($F$29,'CT - Tabela'!$B$5:$B$119,0)),0) -> 0 | F55: 1333.35 | G55: 0 | H55: 0 | I55: 594.6741 | J55: 26.667 | K55: 2023 | L55: 186.669 | M55: 293.337 | N55: 2318.694
A56: 10 | B56: 2023-12-01 | C56: =IF(A56<=$C$16,INDEX('CT - Tabela'!$C$5:$C$119,MATCH($F$29,'CT - Tabela'!$B$5:$B$119,0)),0) -> 1333.35 | D56: 132 | E56: =IF(A56<=$C$16,INDEX('CT - Tabela'!$D$5:$D$119,MATCH($F$29,'CT - Tabela'!$B$5:$B$119,0)),0) -> 0 | F56: 0 | G56: 0 | H56: 0 | I56: 297.33705 | J56: 26.667 | K56: 2023 | L56: 93.3345 | M56: 146.6685 | N56: 1225.347
A57: 11 | B57: 2024-01-01 | C57: =IF(A57<=$C$16,INDEX('CT - Tabela'!$C$5:$C$119,MATCH($F$29,'CT - Tabela'!$B$5:$B$119,0)),0) -> 1333.35 | D57: 132 | E57: =IF(A57<=$C$16,INDEX('CT - Tabela'!$D$5:$D$119,MATCH($F$29,'CT - Tabela'!$B$5:$B$119,0)),0) -> 0 | F57: 0 | G57: 0 | H57: 0 | I57: 297.33705 | J57: 26.667 | K57: 2024 | L57: 93.3345 | M57: 146.6685 | N57: 1225.347
A58: 12 | B58: 2024-02-01 | C58: =IF(A58<=$C$16,INDEX('CT - Tabela'!$C$5:$C$119,MATCH($F$29,'CT - Tabela'!$B$5:$B$119,0)),0) -> 1333.35 | D58: 132 | E58: =IF(A58<=$C$16,INDEX('CT - Tabela'!$D$5:$D$119,MATCH($F$29,'CT - Tabela'!$B$5:$B$119,0)),0) -> 0 | F58: 0 | G58: 0 | H58: 1066.68 | I58: 297.33705 | J58: 26.667 | K58: 2024 | L58: 93.3345 | M58: 146.6685 | N58: 2292.027
B60: Total Ano 1 | C60: =SUM(C47:C58) -> 16000.2 | D60: =SUM(D47:D58) -> 1452 | E60: =SUM(E47:E58) -> 0 | F60: 1333.35 | G60: 1333.35 | H60: 1066.68 | I60: 4162.7187 | J60: 320.004 | L60: 1306.683 | M60: 2053.359 | N60: 17825.538
A62: =+A58+1 -> 13 | B62: =DATE(YEAR(B58),MONTH(B58)+1,DAY(B58)) -> 2024-03-01 | C62: =IF(A62<=$C$16,INDEX('CT - Tabela'!$C$5:$C$119,MATCH($F$29,'CT - Tabela'!$B$5:$B$119,0)),0) -> 0 | D62: =IF(AND(A62<=$C$16,MONTH(B62)<>6),22*6,0) -> 0 | E62: =IF(A62<=$C$16,INDEX('CT - Tabela'!$D$5:$D$119,MATCH($F$29,'CT - Tabela'!$B$5:$B$119,0)),0) -> 0 | F62: =IF(MONTH(B62)=11,C62+E62,0) -> 0 | G62: =IF(MONTH(B62)=6,C62+E62,0) -> 0 | H62: =IF(A62=$C$16,C62/30*2*fldDuracao,0) -> 0 | I62: =(C62+E62+F62+G62)*22.3% -> 0 | J62: =2%*C62 -> 0 | K62: =YEAR(B62) -> 2024 | L62: =((C62+E62+F62+G62+IF(H62>6500,H62-6500,0))*$C$33) -> 0 | M62: =(C62+E62+F62+G62)*$C$35 -> 0 | N62: =SUM(C62:H62)-SUM(L62:M62) -> 0
A63: =+A62+1 -> 14 | B63: =DATE(YEAR(B62),MONTH(B62)+1,DAY(B62)) -> 2024-04-01 | C63: =IF(A63<=$C$16,INDEX('CT - Tabela'!$C$5:$C$119,MATCH($F$29,'CT - Tabela'!$B$5:$B$119,0)),0) -> 0 | D63: =IF(AND(A63<=$C$16,MONTH(B63)<>6),22*6,0) -> 0 | E63: =IF(A63<=$C$16,INDEX('CT - Tabela'!$D$5:$D$119,MATCH($F$29,'CT - Tabela'!$B$5:$B$119,0)),0) -> 0 | F63: =IF(MONTH(B63)=11,C63+E63,0) -> 0 | G63: 0 | H63: 0 | I63: 0 | J63: 0 | K63: =YEAR(B63) -> 2024 | L63: 0 | M63: 0 | N63: 0
A64: =+A63+1 -> 15 | B64: =DATE(YEAR(B63),MONTH(B63)+1,DAY(B63)) -> 2024-05-01 | C64: =IF(A64<=$C$16,INDEX('CT - Tabela'!$C$5:$C$119,MATCH($F$29,'CT - Tabela'!$B$5:$B$119,0)),0) -> 0 | D64: 0 | E64: =IF(A64<=$C$16,INDEX('CT - Tabela'!$D$5:$D$119,MATCH($F$29,'CT - Tabela'!$B$5:$B$119,0)),0) -> 0 | F64: 0 | G64: 0 | H64: 0 | I64: 0 | J64: 0 | K64: 2024 | L64: 0 | M64: 0 | N64: 0
A65: 16 | B65: 2024-06-01 | C65: =IF(A65<=$C$16,INDEX('CT - Tabela'!$C$5:$C$119,MATCH($F$29,'CT - Tabela'!$B$5:$B$119,0)),0) -> 0 | D65: 0 | E65: =IF(A65<=$C$16,INDEX('CT - Tabela'!$D$5:$D$119,MATCH($F$29,'CT - Tabela'!$B$5:$B$119,0)),0) -> 0 | F65: 0 | G65: 0 | H65: 0 | I65: 0 | J65: 0 | K65: 2024 | L65: 0 | M65: 0 | N65: 0
A66: 17 | B66: 2024-07-01 | C66: =IF(A66<=$C$16,INDEX('CT - Tabela'!$C$5:$C$119,MATCH($F$29,'CT - Tabela'!$B$5:$B$119,0)),0) -> 0 | D66: 0 | E66: =IF(A66<=$C$16,INDEX('CT - Tabela'!$D$5:$D$119,MATCH($F$29,'CT - Tabela'!$B$5:$B$119,0)),0) -> 0 | F66: 0 | G66: 0 | H66: 0 | I66: 0 | J66: 0 | K66: 2024 | L66: 0 | M66: 0 | N66: 0
A67: 18 | B67: 2024-08-01 | C67: =IF(A67<=$C$16,INDEX('CT - Tabela'!$C$5:$C$119,MATCH($F$29,'CT - Tabela'!$B$5:$B$119,0)),0) -> 0 | D67: 0 | E67: =IF(A67<=$C$16,INDEX('CT - Tabela'!$D$5:$D$119,MATCH($F$29,'CT - Tabela'!$B$5:$B$119,0)),0) -> 0 | F67: 0 | G67: 0 | H67: 0 | I67: 0 | J67: 0 | K67: 2024 | L67: 0 | M67: 0 | N67: 0
A68: 19 | B68: 2024-09-01 | C68: =IF(A68<=$C$16,INDEX('CT - Tabela'!$C$5:$C$119,MATCH($F$29,'CT - Tabela'!$B$5:$B$119,0)),0) -> 0 | D68: 0 | E68: =IF(A68<=$C$16,INDEX('CT - Tabela'!$D$5:$D$119,MATCH($F$29,'CT - Tabela'!$B$5:$B$119,0)),0) -> 0 | F68: 0 | G68: 0 | H68: 0 | I68: 0 | J68: 0 | K68: 2024 | L68: 0 | M68: 0 | N68: 0
A69: 20 | B69: 2024-10-01 | C69: =IF(A69<=$C$16,INDEX('CT - Tabela'!$C$5:$C$119,MATCH($F$29,'CT - Tabela'!$B$5:$B$119,0)),0) -> 0 | D69: 0 | E69: =IF(A69<=$C$16,INDEX('CT - Tabela'!$D$5:$D$119,MATCH($F$29,'CT - Tabela'!$B$5:$B$119,0)),0) -> 0 | F69: 0 | G69: 0 | H69: 0 | I69: 0 | J69: 0 | K69: 2024 | L69: 0 | M69: 0 | N69: 0
A70: 21 | B70: 2024-11-01 | C70: =IF(A70<=$C$16,INDEX('CT - Tabela'!$C$5:$C$119,MATCH($F$29,'CT - Tabela'!$B$5:$B$119,0)),0) -> 0 | D70: 0 | E70: =IF(A70<=$C$16,INDEX('CT - Tabela'!$D$5:$D$119,MATCH($F$29,'CT - Tabela'!$B$5:$B$119,0)),0) -> 0 | F70: 0 | G70: 0 | H70: 0 | I70: 0 | J70: 0 | K70: 2024 | L70: 0 | M70: 0 | N70: 0
A71: 22 | B71: 2024-12-01 | C71: =IF(A71<=$C$16,INDEX('CT - Tabela'!$C$5:$C$119,MATCH($F$29,'CT - Tabela'!$B$5:$B$119,0)),0) -> 0 | D71: 0 | E71: =IF(A71<=$C$16,INDEX('CT - Tabela'!$D$5:$D$119,MATCH($F$29,'CT - Tabela'!$B$5:$B$119,0)),0) -> 0 | F71: 0 | G71: 0 | H71: 0 | I71: 0 | J71: 0 | K71: 2024 | L71: 0 | M71: 0 | N71: 0
A72: 23 | B72: 2025-01-01 | C72: =IF(A72<=$C$16,INDEX('CT - Tabela'!$C$5:$C$119,MATCH($F$29,'CT - Tabela'!$B$5:$B$119,0)),0) -> 0 | D72: 0 | E72: =IF(A72<=$C$16,INDEX('CT - Tabela'!$D$5:$D$119,MATCH($F$29,'CT - Tabela'!$B$5:$B$119,0)),0) -> 0 | F72: 0 | G72: 0 | H72: 0 | I72: 0 | J72: 0 | K72: 2025 | L72: 0 | M72: 0 | N72: 0
A73: 24 | B73: 2025-02-01 | C73: =IF(A73<=$C$16,INDEX('CT - Tabela'!$C$5:$C$119,MATCH($F$29,'CT - Tabela'!$B$5:$B$119,0)),0) -> 0 | D73: 0 | E73: =IF(A73<=$C$16,INDEX('CT - Tabela'!$D$5:$D$119,MATCH($F$29,'CT - Tabela'!$B$5:$B$119,0)),0) -> 0 | F73: 0 | G73: 0 | H73: 0 | I73: 0 | J73: 0 | K73: 2025 | L73: 0 | M73: 0 | N73: 0
B75: Total Ano 2 | C75: =SUM(C62:C73) -> 0 | D75: =SUM(D62:D73) -> 0 | E75: 0 | F75: 0 | G75: 0 | H75: =SUM(H62:H73) -> 0 | I75: 0 | J75: 0 | L75: =SUM(L62:L73) -> 0 | M75: 0 | N75: 0
A77: =+A73+1 -> 25 | B77: =DATE(YEAR(B73),MONTH(B73)+1,DAY(B73)) -> 2025-03-01 | C77: =IF(A77<=$C$16,INDEX('CT - Tabela'!$C$5:$C$119,MATCH($F$29,'CT - Tabela'!$B$5:$B$119,0)),0) -> 0 | D77: =IF(AND(A77<=$C$16,MONTH(B77)<>6),22*6,0) -> 0 | E77: =IF(A77<=$C$16,INDEX('CT - Tabela'!$D$5:$D$119,MATCH($F$29,'CT - Tabela'!$B$5:$B$119,0)),0) -> 0 | F77: =IF(MONTH(B77)=11,C77+E77,0) -> 0 | G77: =IF(MONTH(B77)=6,C77+E77,0) -> 0 | H77: =IF(A77=$C$16,C77/30*2*fldDuracao,0) -> 0 | I77: =(C77+E77+F77+G77)*22.3% -> 0 | J77: =2%*C77 -> 0 | K77: =YEAR(B77) -> 2025 | L77: =((C77+E77+F77+G77+IF(H77>6500,H77-6500,0))*$C$33) -> 0 | M77: =(C77+E77+F77+G77)*$C$35 -> 0 | N77: =SUM(C77:H77)-SUM(L77:M77) -> 0
A78: =+A77+1 -> 26 | B78: =DATE(YEAR(B77),MONTH(B77)+1,DAY(B77)) -> 2025-04-01 | C78: =IF(A78<=$C$16,INDEX('CT - Tabela'!$C$5:$C$119,MATCH($F$29,'CT - Tabela'!$B$5:$B$119,0)),0) -> 0 | D78: 0 | E78: =IF(A78<=$C$16,INDEX('CT - Tabela'!$D$5:$D$119,MATCH($F$29,'CT - Tabela'!$B$5:$B$119,0)),0) -> 0 | F78: =IF(MONTH(B78)=11,C78+E78,0) -> 0 | G78: 0 | H78: 0 | I78: 0 | J78: 0 | K78: 2025 | L78: 0 | M78: 0 | N78: 0
A79: =+A78+1 -> 27 | B79: =DATE(YEAR(B78),MONTH(B78)+1,DAY(B78)) -> 2025-05-01 | C79: =IF(A79<=$C$16,INDEX('CT - Tabela'!$C$5:$C$119,MATCH($F$29,'CT - Tabela'!$B$5:$B$119,0)),0) -> 0 | D79: 0 | E79: =IF(A79<=$C$16,INDEX('CT - Tabela'!$D$5:$D$119,MATCH($F$29,'CT - Tabela'!$B$5:$B$119,0)),0) -> 0 | F79: 0 | G79: 0 | H79: 0 | I79: 0 | J79: 0 | K79: 2025 | L79: 0 | M79: 0 | N79: 0
A80: 28 | B80: 2025-06-01 | C80: =IF(A80<=$C$16,INDEX('CT - Tabela'!$C$5:$C$119,MATCH($F$29,'CT - Tabela'!$B$5:$B$119,0)),0) -> 0 | D80: 0 | E80: =IF(A80<=$C$16,INDEX('CT - Tabela'!$D$5:$D$119,MATCH($F$29,'CT - Tabela'!$B$5:$B$119,0)),0) -> 0 | F80: 0 | G80: 0 | H80: 0 | I80: 0 | J80: 0 | K80: 2025 | L80: 0 | M80: 0 | N80: 0
A81: 29 | B81: 2025-07-01 | C81: =IF(A81<=$C$16,INDEX('CT - Tabela'!$C$5:$C$119,MATCH($F$29,'CT - Tabela'!$B$5:$B$119,0)),0) -> 0 | D81: 0 | E81: =IF(A81<=$C$16,INDEX('CT - Tabela'!$D$5:$D$119,MATCH($F$29,'CT - Tabela'!$B$5:$B$119,0)),0) -> 0 | F81: 0 | G81: 0 | H81: 0 | I81: 0 | J81: 0 | K81: 2025 | L81: 0 | M81: 0 | N81: 0
A82: 30 | B82: 2025-08-01 | C82: =IF(A82<=$C$16,INDEX('CT - Tabela'!$C$5:$C$119,MATCH($F$29,'CT - Tabela'!$B$5:$B$119,0)),0) -> 0 | D82: 0 | E82: =IF(A82<=$C$16,INDEX('CT - Tabela'!$D$5:$D$119,MATCH($F$29,'CT - Tabela'!$B$5:$B$119,0)),0) -> 0 | F82: 0 | G82: 0 | H82: 0 | I82: 0 | J82: 0 | K82: 2025 | L82: 0 | M82: 0 | N82: 0
A83: 31 | B83: 2025-09-01 | C83: =IF(A83<=$C$16,INDEX('CT - Tabela'!$C$5:$C$119,MATCH($F$29,'CT - Tabela'!$B$5:$B$119,0)),0) -> 0 | D83: 0 | E83: =IF(A83<=$C$16,INDEX('CT - Tabela'!$D$5:$D$119,MATCH($F$29,'CT - Tabela'!$B$5:$B$119,0)),0) -> 0 | F83: 0 | G83: 0 | H83: 0 | I83: 0 | J83: 0 | K83: 2025 | L83: 0 | M83: 0 | N83: 0
A84: 32 | B84: 2025-10-01 | C84: =IF(A84<=$C$16,INDEX('CT - Tabela'!$C$5:$C$119,MATCH($F$29,'CT - Tabela'!$B$5:$B$119,0)),0) -> 0 | D84: 0 | E84: =IF(A84<=$C$16,INDEX('CT - Tabela'!$D$5:$D$119,MATCH($F$29,'CT - Tabela'!$B$5:$B$119,0)),0) -> 0 | F84: 0 | G84: 0 | H84: 0 | I84: 0 | J84: 0 | K84: 2025 | L84: 0 | M84: 0 | N84: 0
A85: 33 | B85: 2025-11-01 | C85: =IF(A85<=$C$16,INDEX('CT - Tabela'!$C$5:$C$119,MATCH($F$29,'CT - Tabela'!$B$5:$B$119,0)),0) -> 0 | D85: 0 | E85: =IF(A85<=$C$16,INDEX('CT - Tabela'!$D$5:$D$119,MATCH($F$29,'CT - Tabela'!$B$5:$B$119,0)),0) -> 0 | F85: 0 | G85: 0 | H85: 0 | I85: 0 | J85: 0 | K85: 2025 | L85: 0 | M85: 0 | N85: 0
A86: 34 | B86: 2025-12-01 | C86: =IF(A86<=$C$16,INDEX('CT - Tabela'!$C$5:$C$119,MATCH($F$29,'CT - Tabela'!$B$5:$B$119,0)),0) -> 0 | D86: 0 | E86: =IF(A86<=$C$16,INDEX('CT - Tabela'!$D$5:$D$119,MATCH($F$29,'CT - Tabela'!$B$5:$B$119,0)),0) -> 0 | F86: 0 | G86: 0 | H86: 0 | I86: 0 | J86: 0 | K86: 2025 | L86: 0 | M86: 0 | N86: 0
A87: 35 | B87: 2026-01-01 | C87: =IF(A87<=$C$16,INDEX('CT - Tabela'!$C$5:$C$119,MATCH($F$29,'CT - Tabela'!$B$5:$B$119,0)),0) -> 0 | D87: 0 | E87: =IF(A87<=$C$16,INDEX('CT - Tabela'!$D$5:$D$119,MATCH($F$29,'CT - Tabela'!$B$5:$B$119,0)),0) -> 0 | F87: 0 | G87: 0 | H87: 0 | I87: 0 | J87: 0 | K87: 2026 | L87: 0 | M87: 0 | N87: 0
A88: 36 | B88: 2026-02-01 | C88: =IF(A88<=$C$16,INDEX('CT - Tabela'!$C$5:$C$119,MATCH($F$29,'CT - Tabela'!$B$5:$B$119,0)),0) -> 0 | D88: 0 | E88: =IF(A88<=$C$16,INDEX('CT - Tabela'!$D$5:$D$119,MATCH($F$29,'CT - Tabela'!$B$5:$B$119,0)),0) -> 0 | F88: 0 | G88: 0 | H88: 0 | I88: 0 | J88: 0 | K88: 2026 | L88: 0 | M88: 0 | N88: 0
B90: Total Ano 3 | C90: =SUM(C77:C88) -> 0 | D90: =SUM(D77:D88) -> 0 | E90: =SUM(E77:E88) -> 0 | F90: 0 | G90: 0 | H90: 0 | I90: 0 | J90: 0 | L90: =SUM(L77:L88) -> 0 | M90: 0 | N90: 0
B93: Resumo da Imputação ao Centro de Custos por Ano e Conta Económica
C95: Conta Económica | D95: =+YEAR(fldDatadeInicio) -> 2023 | E95: =+D95+1 -> 2024 | F95: =+E95+1 -> 2025 | G95: 2026 | H95: Total
C97: Vencimento Base CE 010106 | D97: =SUMIF($K$47:$K$90,D$95,$C$47:$C$90) -> 13333.5 | E97: =SUMIF($K$47:$K$90,E$95,$C$47:$C$90) -> 2666.7 | F97: 0 | G97: 0 | H97: =SUM(D97:G97) -> 16000.2
C98: Subsídio de Alimentação CE 010113 | D98: =SUMIF($K$47:$K$90,D$95,$D$47:$D$90) -> 1188 | E98: =SUMIF($K$47:$K$90,E$95,$D$47:$D$90) -> 264 | F98: 0 | G98: 0 | H98: =SUM(D98:G98) -> 1452
C99: Renum. Complementar CE 010213RC00 | D99: =SUMIF($K$47:$K$90,D$95,$E$47:$E$90) -> 0 | E99: =SUMIF($K$47:$K$90,E$95,$E$47:$E$90) -> 0 | F99: 0 | G99: 0 | H99: 0
C100: Subsídio de Natal CE 010114SN00 | D100: =SUMIF($K$47:$K$90,D$95,$F$47:$F$90) -> 1333.35 | E100: =SUMIF($K$47:$K$90,E$95,$F$47:$F$90) -> 0 | F100: 0 | G100: 0 | H100: 1333.35
C101: Subsídio de Férias CE 010114SF00 | D101: =SUMIF($K$47:$K$90,D$95,$G$47:$G$90) -> 1333.35 | E101: =SUMIF($K$47:$K$90,E$95,$G$47:$G$90) -> 0 | F101: 0 | G101: 0 | H101: 1333.35
C102: Compl. Termo Contrato CE 010212 | D102: =SUMIF($K$47:$K$90,D$95,$H$47:$H$90) -> 0 | E102: =SUMIF($K$47:$K$90,E$95,$H$47:$H$90) -> 1066.68 | F102: 0 | G102: 0 | H102: 1066.68
C103: Encargos Seg. Social CE 010305A0B0 | D103: =SUMIF($K$47:$K$90,D$95,$I$47:$I$90) -> 3568.0446 | E103: =SUMIF($K$47:$K$90,E$95,$I$47:$I$90) -> 594.6741 | F103: 0 | G103: 0 | H103: 4162.7187
C104: Seguro de Ac. de Trab. CE 010309 | D104: =SUMIF($K$47:$K$90,D$95,$J$47:$J$90) -> 266.67 | E104: =SUMIF($K$47:$K$90,E$95,$J$47:$J$90) -> 53.334 | F104: 0 | G104: 0 | H104: 320.004
C106: Total | D106: =SUM(D97:D104) -> 21022.9146 | E106: =SUM(E97:E104) -> 4645.3881 | F106: 0 | G106: 0 | H106: =SUM(H97:H104) -> 25668.3027

Sheet ESTAGIAR
C3: SIMULADOR DE CUSTOS COM RECURSOS HUMANOS
C4: Programa ESTAGIAR
E6: Versão | F6: 2023-02-17
B8: Pressupostos do ESTAGIAR
B10: Conforme o Art.º 20.º do Regulamento dos Programas Estagiar, a FGF fica obrigada, após o período de estágio, à celebração de contrato a tempo completo por 1 ano, sem período experimental, com, pelo menos, 50% dos estagiários que iniciaram no mesmo mês.
B11: Assim, e de forma a cumprir com o exposto supra, será cabimentada verba para um ano de contrato. Na eventualidade de a FGF atingir a quota referida no Art.º 20.º, a verba poderá ser descabimentada.
B12: Neste contexto, e após usar este simulador, deverá o requerente usar, igualmente, o simulador para contratos de trabalho.
B14: Tipo de Estagiar | C14: Estagiar L
B16: Nos termos do Regulamento dos programas ESTAGIAR L, ESTAGIAR T e ESTAGIAR +:
B17: 1. O ESTAGIAR L destina-se a jovens recém-diplomados no ensino superior, detentores de nível VI, VII ou VIII do QNQ, que nunca tenham exercido funções na respetiva área de formação ao abrigo de contrato de trabalho, após a conclusão da respetiva formação.
B18: 2. O ESTAGIAR T destina-se a jovens recém-diplomados em cursos de qualificação profissional, nível IV ou V do QNQ, que nunca tenham exercido funções na respetiva área de formação ao abrigo de contrato de trabalho, após a conclusão da respetiva formação.
B19: 3. O ESTAGIAR + destina-se a jovens com qualificação igual ou inferior ao nível III do QNQ, inscritos no CQE há mais de três meses, quando estão à procura de primeiro emprego, ou jovens desempregados há mais de seis meses, quando estão à procura de novo emprego.
B21: Data de Início (Mês/Ano) | C21: 2023-05-01
B23: Pretende Prorrogação? | C23: Sim
B25: Os estágios têm a duração de 12 meses, incluindo um mês de descanso a gozar durante o 12.º mês de estágio, podendo ser prorrogados por um período de 3 meses.
B27: Posição Remuneratória | C27: =INDEX('Estagiar - Tabela'!$C$7:$C$9,MATCH(fldTipoDeBolseiro,'Estagiar - Tabela'!$B$7:$B$9,0)) -> 997.5
B29: Estimativas
B31: O Seguro de Acidentes de Trabalho foi assumido como sendo 2% da compensação do ESTAGIAR, no entanto esse valor poderá variar conforme as condições de mercado.
B33: Data | C33: Compensação ESTAGIAR | D33: Encargos Seg. Social | E33: Seguro de Ac. de Trabalho
C34: CE 040802A000 | D34: CE 010305A0B0 | E34: CE 020212B000
A36: 1 | B36: =C21 -> 2023-05-01 | C36: 0 | D36: =$C$27*22.3% -> 222.4425 | E36: =2%*$C$27 -> 19.95 | F36: =YEAR(B36) -> 2023
A37: =+A36+1 -> 2 | B37: =DATE(YEAR(B36),MONTH(B36)+1,DAY(B36)) -> 2023-06-01 | C37: 0 | D37: =$C$27*22.3% -> 222.4425 | E37: =2%*$C$27 -> 19.95 | F37: =YEAR(B37) -> 2023
A38: =+A37+1 -> 3 | B38: =DATE(YEAR(B37),MONTH(B37)+1,DAY(B37)) -> 2023-07-01 | C38: 0 | D38: 222.4425 | E38: 19.95 | F38: 2023
A39: 4 | B39: 2023-08-01 | C39: 0 | D39: 222.4425 | E39: 19.95 | F39: 2023
A40: 5 | B40: 2023-09-01 | C40: 0 | D40: 222.4425 | E40: 19.95 | F40: 2023
A41: 6 | B41: 2023-10-01 | C41: 0 | D41: 222.4425 | E41: 19.95 | F41: 2023
A42: 7 | B42: 2023-11-01 | C42: 0 | D42: 222.4425 | E42: 19.95 | F42: 2023
A43: 8 | B43: 2023-12-01 | C43: 0 | D43: 222.4425 | E43: 19.95 | F43: 2023
A44: 9 | B44: 2024-01-01 | C44: 0 | D44: 222.4425 | E44: 19.95 | F44: 2024
A45: 10 | B45: 2024-02-01 | C45: 0 | D45: 222.4425 | E45: 19.95 | F45: 2024
A46: 11 | B46: 2024-03-01 | C46: 0 | D46: 222.4425 | E46: 19.95 | F46: 2024
A47: 12 | B47: 2024-04-01 | C47: 0 | D47: 222.4425 | E47: 19.95 | F47: 2024
B49: Total Ano 1 | C49: =SUM(C36:C47) -> 0 | D49: =SUM(D36:D47) -> 2669.31 | E49: =SUM(E36:E47) -> 239.4
B51: =DATE(YEAR(B47),MONTH(B47)+1,DAY(B47)) -> 2024-05-01 | C51: =IF(fldProrrogacao="Sim",fldPosicaoRemuneratoria*30%,0) -> 299.25 | D51: =IF(fldProrrogacao="Sim",$C$27*22.3%,0) -> 222.4425 | E51: =IF(fldProrrogacao="Sim",2%*$C$27,0) -> 19.95 | F51: =YEAR(B51) -> 2024
B52: =DATE(YEAR(B51),MONTH(B51)+1,DAY(B51)) -> 2024-06-01 | C52: =IF(fldProrrogacao="Sim",fldPosicaoRemuneratoria*30%,0) -> 299.25 | D52: =IF(fldProrrogacao="Sim",$C$27*22.3%,0) -> 222.4425 | E52: =IF(fldProrrogacao="Sim",2%*$C$27,0) -> 19.95 | F52: 2024
B53: 2024-07-01 | C53: =IF(fldProrrogacao="Sim",fldPosicaoRemuneratoria*30%,0) -> 299.25 | D53: =IF(fldProrrogacao="Sim",$C$27*22.3%,0) -> 222.4425 | E53: =IF(fldProrrogacao="Sim",2%*$C$27,0) -> 19.95 | F53: 2024
B55: Total Prorrogação | C55: =SUM(C51:C53) -> 897.75 | D55: =SUM(D51:D53) -> 667.3275 | E55: =SUM(E51:E53) -> 59.85
B57: Resumo da Imputação ao Centro de Custos por Ano e Conta Económica
B59: Conta Económica | C59: =YEAR(fldDatadeInicio) -> 2023 | D59: =+C59+1 -> 2024 | E59: =+D59+1 -> 2025 | F59: Total
B61: Compensação ESTAGIAR CE 040802A000 | C61: =SUMIF($F$36:$F$55,C$59,$C$36:$C$55) -> 0 | D61: =SUMIF($F$36:$F$55,D$59,$C$36:$C$55) -> 897.75 | E61: 0 | F61: =SUM(C61:E61) -> 897.75
B62: Encargos Seg. Social CE 010305A0B0 | C62: =SUMIF($F$36:$F$55,C$59,$D$36:$D$55) -> 1779.54 | D62: =SUMIF($F$36:$F$55,D$59,$D$36:$D$55) -> 1557.0975 | E62: 0 | F62: =SUM(C62:E62) -> 3336.6375
B63: Seguro de Ac. de Trabalho CE 020212B000 | C63: =SUMIF($F$36:$F$55,C$59,$E$36:$E$55) -> 159.6 | D63: =SUMIF($F$36:$F$55,D$59,$E$36:$E$55) -> 139.65 | E63: 0 | F63: 299.25
B65: Total | C65: =SUM(C61:C63) -> 1939.14 | D65: =SUM(D61:D63) -> 2594.4975 | E65: 0 | F65: 4533.6375

Sheet Bolsa
C3: SIMULADOR DE CUSTOS COM RECURSOS HUMANOS
C4: Bolsa
D6: Versão | E6: 2023-02-17
B8: Pressupostos da Bolsa
B10: Uma vez que a FGF recebe financiamento da Fundação para a Ciência e Tecnologia (FCT), esta está obrigada a aplicar o Estatuto do Bolseiro de Investigação e o Regulamento de Bolsas de Investigação a todos os bolseiros, mesmo quando a respetiva bolsa não seja financiada diretamente pela FCT.
B12: Tipo de Bolsa | C12: Bolsa de Investigação | D12: =IF(fldTipoDeBolseiro="Bolsa de Investigação",fldTipoDeBolseiro&" - "&fldGrauAcademico,fldTipoDeBolseiro) -> Bolsa de Investigação - Licenciado
B14: Grau Académico do Bolseiro | C14: Licenciado
B16: Data de Início (Mês/Ano) | C16: 2023-01-01
B18: As durações das bolsas encontram-se previstas nos Art.º 5º a 7º do Regulamento n.º 950/2019 da FCT e no Art.º 3º do Estatuto do Bolseiro de Investigação.
B19: Em regra, as bolsas têm uma duração entre 3 e 12 meses. Conforme a tipologia da bolsa, é possível a renovação - por exemplo, a bolsa de doutoramento pode ser renovada até atingir 4 anos.
B21: Posição Remuneratória | C21: =INDEX('Bolsas - Tabela'!$D$5:$D$10,MATCH(Bolsa!D12,'Bolsas - Tabela'!$F$5:$F$10,0)) -> 930.98
B23: Indexante dos Apoios Sociais | C23: 480.43
B25: Estimativas
B27: As estimativas abaixo assumem que a bolsa terá uma duração de 12 meses. O Seguro Social Voluntário é opcional.
B28: O Seguro de Acidentes de Trabalho foi assumido como sendo 2% da compensação do ESTAGIAR, no entanto esse valor poderá variar conforme as condições de mercado.
B30: Data | C30: Valor da Bolsa | D30: Seguro Social Voluntário | E30: Seguro de Ac. de Trabalho
C31: CE 040802BE00 | D31: CE 010305A0O0 | E31: CE 020212B000
A33: 1 | B33: =C16 -> 2023-01-01 | C33: =fldPosicaoRemuneratoria -> 930.98 | D33: =C23*29.6% -> 142.20728 | E33: =2%*C33 -> 18.6196 | F33: =YEAR(B33) -> 2023
A34: =+A33+1 -> 2 | B34: =DATE(YEAR(B33),MONTH(B33)+1,DAY(B33)) -> 2023-02-01 | C34: 930.98 | D34: =+D33 -> 142.20728 | E34: =2%*C34 -> 18.6196 | F34: =YEAR(B34) -> 2023
A35: =+A34+1 -> 3 | B35: =DATE(YEAR(B34),MONTH(B34)+1,DAY(B34)) -> 2023-03-01 | C35: 930.98 | D35: =+D34 -> 142.20728 | E35: 18.6196 | F35: 2023
A36: 4 | B36: 2023-04-01 | C36: 930.98 | D36: 142.20728 | E36: 18.6196 | F36: 2023
A37: 5 | B37: 2023-05-01 | C37: 930.98 | D37: 142.20728 | E37: 18.6196 | F37: 2023
A38: 6 | B38: 2023-06-01 | C38: 930.98 | D38: 142.20728 | E38: 18.6196 | F38: 2023
A39: 7 | B39: 2023-07-01 | C39: 930.98 | D39: 142.20728 | E39: 18.6196 | F39: 2023
A40: 8 | B40: 2023-08-01 | C40: 930.98 | D40: 142.20728 | E40: 18.6196 | F40: 2023
A41: 9 | B41: 2023-09-01 | C41: 930.98 | D41: 142.20728 | E41: 18.6196 | F41: 2023
A42: 10 | B42: 2023-10-01 | C42: 930.98 | D42: 142.20728 | E42: 18.6196 | F42: 2023
A43: 11 | B43: 2023-11-01 | C43: 930.98 | D43: 142.20728 | E43: 18.6196 | F43: 2023
A44: 12 | B44: 2023-12-01 | C44: 930.98 | D44: 142.20728 | E44: 18.6196 | F44: 2023
B46: Total Ano 1 | C46: =SUM(C33:C44) -> 11171.76 | D46: =SUM(D33:D44) -> 1706.48736 | E46: =SUM(E33:E44) -> 223.4352
B48: Resumo da Imputação ao Centro de Custos por Ano e Conta Económica
B50: Conta Económica | C50: =YEAR(fldDatadeInicio) -> 2023 | D50: =+C50+1 -> 2024 | E50: Total
B52: Valor da Bolsa CE 040802BE00 | C52: =SUMIF($F$33:$F$44,C$50,$C$33:$C$44) -> 11171.76 | D52: =SUMIF($F$33:$F$44,D$50,$C$33:$C$44) -> 0 | E52: =SUM(C52:D52) -> 11171.76
B53: Seguro Social Voluntário CE 010305A0O0 | C53: =SUMIF($F$33:$F$44,C$50,$D$33:$D$44) -> 1706.48736 | D53: =SUMIF($F$33:$F$44,D$50,$D$33:$D$44) -> 0 | E53: =SUM(C53:D53) -> 1706.48736
B54: Seguro de Ac. de Trabalho CE 020212B000 | C54: =SUMIF($F$33:$F$44,C$50,$E$33:$E$44) -> 223.4352 | D54: =SUMIF($F$33:$F$44,D$50,$E$33:$E$44) -> 0 | E54: 223.4352
B56: Total | C56: =SUM(C52:C54) -> 13101.68256 | D56: =SUM(D52:D54) -> 0 | E56: 13101.68256

Sheet CT - Tabela (hidden)
A1: Tabela Remuneratória Única | I1: Tabela Remuneração Complementar
A2: Atualizada a 19/04/2023 | I2: Atualizada a 19/04/2023
B4: Posição | C4: Remuneração | D4: Remuneração | F4: Geral e AT | G4: TS | I4: Intervalo | K4: Percentagem | L4: Montante | M4: Acréscimo | N4: Total
B5: 1 | D5: =RemComplementar(C5) -> 80.45 | F5: =B5&" - "&ROUND(C5,2) -> 1 - 0 | J5: 709.46 | K5: 1 | L5: 80.45 | M5: 0 | N5: =ROUND(L5+M5,2) -> 80.45
B6: =+B5+1 -> 2 | D6: =RemComplementar(C6) -> 80.45 | F6: =B6&" - "&ROUND(C6,2) -> 2 - 0 | I6: 709.47 | J6: 714.94 | K6: 0.9 | L6: =K6*$L$5 -> 72.405 | M6: 0 | N6: =ROUND(L6+M6,2) -> 72.41
B7: =+B6+1 -> 3 | D7: =RemComplementar(C7) -> 80.45 | F7: 3 - 0 | I7: 714.95 | J7: 720.42 | K7: 0.85 | L7: =+K7*$L$5 -> 68.3825 | M7: 0 | N7: 68.38
B8: 4 | D8: =RemComplementar(C8) -> 80.45 | F8: 4 - 0 | I8: 720.43 | J8: 790.04 | K8: 0.8 | L8: 64.36 | M8: 0 | N8: 64.36
B9: 5 | C9: 769.2 | D9: =RemComplementar(C9) -> 64.36 | F9: 5 - 769,2 | I9: 790.05 | J9: 866.72 | K9: 0.7 | L9: 56.315 | M9: 0 | N9: 56.32
B10: 6 | C10: 817.22 | D10: =RemComplementar(C10) -> 56.32 | F10: 6 - 817,22 | I10: 866.73 | J10: 935.33 | K10: 0.6 | L10: 48.27 | M10: 0 | N10: 48.27
B11: 7 | C11: 869.84 | D11: =RemComplementar(C11) -> 48.27 | F11: 7 - 869,84 | I11: 935.34 | J11: 1058.43 | K11: 0.55 | L11: 44.2475 | M11: 0 | N11: 44.25
B12: 8 | C12: 908.77 | D12: =RemComplementar(C12) -> 48.27 | F12: 8 - 908,77 | I12: 1058.44 | J12: 1109.89 | K12: 0.45 | L12: 36.2025 | M12: 0 | N12: 36.2
B13: 9 | C13: 964.93 | D13: =RemComplementar(C13) -> 44.25 | F13: 9 - 964,93 | I13: 1109.9 | J13: 1144.2 | K13: 0.4 | L13: 32.18 | M13: 0 | N13: 32.18
B14: 10 | C14: 1017.56 | D14: =RemComplementar(C14) -> 44.25 | F14: 10 - 1017,56 | I14: 1144.21 | J14: 1230.97 | K14: 0.35 | L14: 28.1575 | M14: 0 | N14: 28.16
B15: 11 | C15: 1070.19 | D15: =RemComplementar(C15) -> 36.2 | F15: 11 - 1070,19 | I15: 1230.98 | J15: 1320.77 | K15: 0.25 | L15: 20.1125 | M15: 0 | N15: 20.11
B16: 12 | C16: 1122.83 | D16: =RemComplementar(C16) -> 32.18 | F16: 12 - 1122,83
B17: 13 | C17: 1175.46 | D17: =RemComplementar(C17) -> 28.16 | F17: 13 - 1175,46
B18: 14 | C18: 1228.09 | D18: =RemComplementar(C18) -> 28.16 | F18: 14 - 1228,09
B19: 15 | C19: 1280.72 | D19: =RemComplementar(C19) -> 20.11 | F19: 15 - 1280,72
B20: 16 | C20: 1333.35 | D20: =RemComplementar(C20) -> 0 | F20: 16 - 1333,35 | G20: =B20&" - "&ROUND(C20,2) -> 16 - 1333,35
B21: 17 | C21: 1385.99 | D21: =RemComplementar(C21) -> 0 | F21: 17 - 1385,99 | G21: =B21&" - "&ROUND(C21,2) -> 17 - 1385,99
B22: 18 | C22: 1438.62 | D22: =RemComplementar(C22) -> 0 | F22: 18 - 1438,62 | G22: 18 - 1438,62
B23: 19 | C23: 1491.25 | D23: =RemComplementar(C23) -> 0 | F23: 19 - 1491,25 | G23: 19 - 1491,25
B24: 20 | C24: 1543.88 | D24: =RemComplementar(C24) -> 0 | F24: 20 - 1543,88 | G24: 20 - 1543,88
B25: 21 | C25: 1596.51 | D25: =RemComplementar(C25) -> 0 | F25: 21 - 1596,51 | G25: 21 - 1596,51
B26: 22 | C26: 1649.15 | D26: =RemComplementar(C26) -> 0 | F26: 22 - 1649,15 | G26: 22 - 1649,15
B27: 23 | C27: 1701.78 | D27: =RemComplementar(C27) -> 0 | F27: 23 - 1701,78 | G27: 23 - 1701,78
B28: 24 | C28: 1754.41 | D28: =RemComplementar(C28) -> 0 | F28: 24 - 1754,41 | G28: 24 - 1754,41
B29: 25 | C29: 1807.04 | D29: =RemComplementar(C29) -> 0 | F29: 25 - 1807,04 | G29: 25 - 1807,04
B30: 26 | C30: 1859.67 | D30: =RemComplementar(C30) -> 0 | F30: 26 - 1859,67 | G30: 26 - 1859,67
B31: 27 | C31: 1912.31 | D31: =RemComplementar(C31) -> 0 | F31: 27 - 1912,31 | G31: 27 - 1912,31
B32: 28 | C32: 1964.95 | D32: =RemComplementar(C32) -> 0 | F32: 28 - 1964,95 | G32: 28 - 1964,95
B33: 29 | C33: 2017.58 | D33: =RemComplementar(C33) -> 0 | F33: 29 - 2017,58 | G33: 29 - 2017,58
B34: 30 | C34: 2070.21 | D34: =RemComplementar(C34) -> 0 | F34: 30 - 2070,21 | G34: 30 - 2070,21
B35: 31 | C35: 2122.84 | D35: =RemComplementar(C35) -> 0 | F35: 31 - 2122,84 | G35: 31 - 2122,84
B36: 32 | C36: 2175.48 | D36: =RemComplementar(C36) -> 0 | F36: 32 - 2175,48 | G36: 32 - 2175,48
B37: 33 | C37: 2228.11 | D37: =RemComplementar(C37) -> 0 | F37: 33 - 2228,11 | G37: 33 - 2228,11
B38: 34 | C38: 2280.74 | D38: =RemComplementar(C38) -> 0 | F38: 34 - 2280,74 | G38: 34 - 2280,74
B39: 35 | C39: 2333.37 | D39: =RemComplementar(C39) -> 0 | F39: 35 - 2333,37 | G39: 35 - 2333,37
B40: 36 | C40: 2386 | D40: =RemComplementar(C40) -> 0 | F40: 36 - 2386 | G40: 36 - 2386
B41: 37 | C41: 2438.64 | D41: =RemComplementar(C41) -> 0 | F41: 37 - 2438,64 | G41: 37 - 2438,64
B42: 38 | C42: 2491.27 | D42: =RemComplementar(C42) -> 0 | F42: 38 - 2491,27 | G42: 38 - 2491,27
B43: 39 | C43: 2543.9 | D43: =RemComplementar(C43) -> 0 | F43: 39 - 2543,9 | G43: 39 - 2543,9
B44: 40 | C44: 2596.53 | D44: =RemComplementar(C44) -> 0 | F44: 40 - 2596,53 | G44: 40 - 2596,53
B45: 41 | C45: 2649.16 | D45: =RemComplementar(C45) -> 0 | F45: 41 - 2649,16 | G45: 41 - 2649,16
B46: 42 | C46: 2702.14 | D46: =RemComplementar(C46) -> 0 | F46: 42 - 2702,14 | G46: 42 - 2702,14
B47: 43 | C47: 2755.84 | D47: =RemComplementar(C47) -> 0 | F47: 43 - 2755,84 | G47: 43 - 2755,84
B48: 44 | C48: 2809.52 | D48: =RemComplementar(C48) -> 0 | F48: 44 - 2809,52 | G48: 44 - 2809,52
B49: 45 | C49: 2863.2 | D49: =RemComplementar(C49) -> 0 | F49: 45 - 2863,2 | G49: 45 - 2863,2
B50: 46 | C50: 2916.89 | D50: =RemComplementar(C50) -> 0 | F50: 46 - 2916,89 | G50: 46 - 2916,89
B51: 47 | C51: 2970.57 | D51: =RemComplementar(C51) -> 0 | F51: 47 - 2970,57 | G51: 47 - 2970,57
B52: 48 | C52: 3024.26 | D52: =RemComplementar(C52) -> 0 | F52: 48 - 3024,26 | G52: 48 - 3024,26
B53: 49 | C53: 3077.95 | D53: =RemComplementar(C53) -> 0 | F53: 49 - 3077,95 | G53: 49 - 3077,95
B54: 50 | C54: 3131.63 | D54: =RemComplementar(C54) -> 0 | F54: 50 - 3131,63 | G54: 50 - 3131,63
B55: 51 | C55: 3185.31 | D55: =RemComplementar(C55) -> 0 | F55: 51 - 3185,31 | G55: 51 - 3185,31
B56: 52 | C56: 3238.99 | D56: =RemComplementar(C56) -> 0 | F56: 52 - 3238,99 | G56: 52 - 3238,99
B57: 53 | C57: 3292.69 | D57: =RemComplementar(C57) -> 0 | F57: 53 - 3292,69 | G57: 53 - 3292,69
B58: 54 | C58: 3346.37 | D58: =RemComplementar(C58) -> 0 | F58: 54 - 3346,37 | G58: 54 - 3346,37
B59: 55 | C59: 3400.16 | D59: =RemComplementar(C59) -> 0 | F59: 55 - 3400,16 | G59: 55 - 3400,16
B60: 56 | C60: 3453.74 | D60: =RemComplementar(C60) -> 0 | F60: 56 - 3453,74 | G60: 56 - 3453,74
B61: 57 | C61: 3507.42 | D61: =RemComplementar(C61) -> 0 | F61: 57 - 3507,42 | G61: 57 - 3507,42
B62: 58 | C62: 3561.11 | D62: =RemComplementar(C62) -> 0 | F62: 58 - 3561,11 | G62: 58 - 3561,11
B63: 59 | C63: 3614.8 | D63: =RemComplementar(C63) -> 0 | F63: 59 - 3614,8 | G63: 59 - 3614,8
B64: 60 | C64: 3668.48 | D64: =RemComplementar(C64) -> 0 | F64: 60 - 3668,48 | G64: 60 - 3668,48
B65: 61 | C65: 3722.16 | D65: =RemComplementar(C65) -> 0 | F65: 61 - 3722,16 | G65: 61 - 3722,16
B66: 62 | C66: 3775.84 | D66: =RemComplementar(C66) -> 0 | F66: 62 - 3775,84 | G66: 62 - 3775,84
B67: 63 | C67: 3829.54 | D67: =RemComplementar(C67) -> 0 | F67: 63 - 3829,54 | G67: 63 - 3829,54
B68: 64 | C68: 3883.22 | D68: =RemComplementar(C68) -> 0 | F68: 64 - 3883,22 | G68: 64 - 3883,22
B69: 65 | C69: 3936.9 | D69: =RemComplementar(C69) -> 0 | F69: 65 - 3936,9 | G69: 65 - 3936,9
B70: 66 | C70: 3990.59 | D70: =RemComplementar(C70) -> 0 | F70: =B70&" - "&ROUND(C70,2) -> 66 - 3990,59 | G70: 66 - 3990,59
B71: =+B70+1 -> 67 | C71: 4044.27 | D71: =RemComplementar(C71) -> 0 | F71: 67 - 4044,27 | G71: 67 - 4044,27
B72: 68 | C72: 4097.96 | D72: =RemComplementar(C72) -> 0 | F72: 68 - 4097,96 | G72: 68 - 4097,96
B73: 69 | C73: 4151.65 | D73: =RemComplementar(C73) -> 0 | F73: 69 - 4151,65 | G73: 69 - 4151,65
B74: 70 | C74: 4205.33 | D74: =RemComplementar(C74) -> 0 | F74: 70 - 4205,33 | G74: 70 - 4205,33
B75: 71 | C75: 4259.01 | D75: =RemComplementar(C75) -> 0 | F75: 71 - 4259,01 | G75: 71 - 4259,01
B76: 72 | C76: 4312.7 | D76: =RemComplementar(C76) -> 0 | F76: 72 - 4312,7 | G76: 72 - 4312,7
B77: 73 | C77: 4366.39 | D77: =RemComplementar(C77) -> 0 | F77: 73 - 4366,39 | G77: 73 - 4366,39
B78: 74 | C78: 4420.07 | D78: =RemComplementar(C78) -> 0 | F78: 74 - 4420,07 | G78: 74 - 4420,07
B79: 75 | C79: 4473.75 | D79: =RemComplementar(C79) -> 0 | F79: 75 - 4473,75 | G79: 75 - 4473,75
B80: 76 | C80: 4527.44 | D80: =RemComplementar(C80) -> 0 | F80: 76 - 4527,44 | G80: 76 - 4527,44
B81: 77 | C81: 4581.12 | D81: =RemComplementar(C81) -> 0 | F81: 77 - 4581,12 | G81: 77 - 4581,12
B82: 78 | C82: 4634.81 | D82: =RemComplementar(C82) -> 0 | F82: 78 - 4634,81 | G82: 78 - 4634,81
B83: 79 | C83: 4688.5 | D83: =RemComplementar(C83) -> 0 | F83: 79 - 4688,5 | G83: 79 - 4688,5
B84: 80 | C84: 4742.18 | D84: =RemComplementar(C84) -> 0 | F84: 80 - 4742,18 | G84: 80 - 4742,18
B85: 81 | C85: 4795.86 | D85: =RemComplementar(C85) -> 0 | F85: 81 - 4795,86 | G85: =B85&" - "&ROUND(C85,2) -> 81 - 4795,86
B86: 82 | C86: 4849.55 | D86: =RemComplementar(C86) -> 0 | F86: 82 - 4849,55 | G86: 82 - 4849,55
B87: 83 | C87: 4903.24 | D87: =RemComplementar(C87) -> 0 | F87: 83 - 4903,24 | G87: 83 - 4903,24
B88: 84 | C88: 4956.92 | D88: =RemComplementar(C88) -> 0 | F88: 84 - 4956,92 | G88: 84 - 4956,92
B89: 85 | C89: 5010.61 | D89: =RemComplementar(C89) -> 0 | F89: 85 - 5010,61 | G89: 85 - 5010,61
B90: 86 | C90: 5064.29 | D90: =RemComplementar(C90) -> 0 | F90: 86 - 5064,29 | G90: 86 - 5064,29
B91: 87 | C91: 5117.97 | D91: =RemComplementar(C91) -> 0 | F91: 87 - 5117,97 | G91: 87 - 5117,97
B92: 88 | C92: 5171.66 | D92: =RemComplementar(C92) -> 0 | F92: 88 - 5171,66 | G92: 88 - 5171,66
B93: 89 | C93: 5225.35 | D93: =RemComplementar(C93) -> 0 | F93: 89 - 5225,35 | G93: 89 - 5225,35
B94: 90 | C94: 5279.03 | D94: =RemComplementar(C94) -> 0 | F94: 90 - 5279,03 | G94: 90 - 5279,03
B95: 91 | C95: 5332.71 | D95: =RemComplementar(C95) -> 0 | F95: 91 - 5332,71 | G95: 91 - 5332,71
B96: 92 | C96: 5386.4 | D96: =RemComplementar(C96) -> 0 | F96: 92 - 5386,4 | G96: 92 - 5386,4
B97: 93 | C97: 5440.09 | D97: =RemComplementar(C97) -> 0 | F97: 93 - 5440,09 | G97: 93 - 5440,09
B98: 94 | C98: 5493.77 | D98: =RemComplementar(C98) -> 0 | F98: 94 - 5493,77 | G98: 94 - 5493,77
B99: 95 | C99: 5547.46 | D99: =RemComplementar(C99) -> 0 | F99: 95 - 5547,46 | G99: 95 - 5547,46
B100: 96 | C100: 5601.14 | D100: =RemComplementar(C100) -> 0 | F100: 96 - 5601,14 | G100: 96 - 5601,14
B101: 97 | C101: 5654.82 | D101: =RemComplementar(C101) -> 0 | F101: 97 - 5654,82 | G101: 97 - 5654,82
B102: 98 | C102: 5708.52 | D102: =RemComplementar(C102) -> 0 | F102: 98 - 5708,52 | G102: 98 - 5708,52
B103: 99 | C103: 5762.2 | D103: =RemComplementar(C103) -> 0 | F103: 99 - 5762,2 | G103: 99 - 5762,2
B104: 100 | C104: 5815.88 | D104: =RemComplementar(C104) -> 0 | F104: 100 - 5815,88 | G104: 100 - 5815,88
B105: 101 | C105: 5869.56 | D105: =RemComplementar(C105) -> 0 | F105: 101 - 5869,56 | G105: 101 - 5869,56
B106: 102 | C106: 5923.25 | D106: =RemComplementar(C106) -> 0 | F106: 102 - 5923,25 | G106: 102 - 5923,25
B107: 103 | C107: 5976.94 | D107: =RemComplementar(C107) -> 0 | F107: 103 - 5976,94 | G107: 103 - 5976,94
B108: 104 | C108: 6030.62 | D108: =RemComplementar(C108) -> 0 | F108: 104 - 6030,62 | G108: 104 - 6030,62
B109: 105 | C109: 6084.31 | D109: =RemComplementar(C109) -> 0 | F109: 105 - 6084,31 | G109: 105 - 6084,31
B110: 106 | C110: 6137.99 | D110: =RemComplementar(C110) -> 0 | F110: 106 - 6137,99 | G110: 106 - 6137,99
B111: 107 | C111: 6191.67 | D111: =RemComplementar(C111) -> 0 | F111: 107 - 6191,67 | G111: 107 - 6191,67
B112: 108 | C112: 6245.37 | D112: =RemComplementar(C112) -> 0 | F112: 108 - 6245,37 | G112: 108 - 6245,37
B113: 109 | C113: 6299.05 | D113: =RemComplementar(C113) -> 0 | F113: 109 - 6299,05 | G113: 109 - 6299,05
B114: 110 | C114: 6352.73 | D114: =RemComplementar(C114) -> 0 | F114: 110 - 6352,73 | G114: 110 - 6352,73
B115: 111 | C115: 6406.41 | D115: =RemComplementar(C115) -> 0 | F115: 111 - 6406,41 | G115: 111 - 6406,41
B116: 112 | C116: 6460.1 | D116: =RemComplementar(C116) -> 0 | F116: 112 - 6460,1 | G116: 112 - 6460,1
B117: 113 | C117: 6513.79 | D117: =RemComplementar(C117) -> 0 | F117: 113 - 6513,79 | G117: 113 - 6513,79
B118: 114 | C118: 6567.47 | D118: =RemComplementar(C118) -> 0 | F118: 114 - 6567,47 | G118: 114 - 6567,47
B119: 115 | C119: 6621.16 | D119: =RemComplementar(C119) -> 0 | F119: 115 - 6621,16 | G119: 115 - 6621,16

Sheet Bolsas - Tabela (hidden)
A1: Tabela de Bolsas da FCT
A2: Atualizada a 01/01/2023
B4: Tipo de Bolsa | C4: Grau | D4: Bolsa (Em Portugal)
B5: Bolsa de Pós-Doutoramento | D5: 1741 | F5: =B5 -> Bolsa de Pós-Doutoramento
B6: Bolsa de Doutoramento | D6: 1199.64 | F6: =B6 -> Bolsa de Doutoramento
B7: Bolsa de Investigação | C7: Doutor | D7: 1741 | F7: =B7&" - "&C7 -> Bolsa de Investigação - Doutor
B8: Bolsa de Investigação | C8: Mestre | D8: 1199.64 | F8: =B8&" - "&C8 -> Bolsa de Investigação - Mestre
B9: Bolsa de Investigação | C9: Licenciado | D9: 930.98 | F9: =B9&" - "&C9 -> Bolsa de Investigação - Licenciado
B10: Bolsa de Iniciação Científica | D10: 541.12 | F10: =B10 -> Bolsa de Iniciação Científica

Sheet Estagiar - Tabela (hidden)
A1: Tabela de Bolsas da FCT
A2: Atualizada a 01/01/2023
B4: RMMG-RAA | C4: 798
B6: Tipo de Estágio | C6: Bolsa (Em Portugal)
B7: Estagiar L | C7: =+$C$4*1.25 -> 997.5
B8: Estagiar T | C8: =+$C$4*1.05 -> 837.9
B9: Estagiar + | C9: =+$C$4 -> 798

Sheet Listas (hidden)
B4: Tipo de Termo | D4: Categorias Profissionais | F4: Sim/Não | H4: Grau Académico | J4: Tipo de Bolsa | L4: Tipo de Estagiário
B5: Certo | D5: Técnico Superior | F5: Sim | H5: Doutor | J5: Bolsa de Pós-Doutoramento | L5: Estagiar T
B6: Incerto | D6: Assistente Técnico | F6: Não | H6: Mestre | J6: Bolsa de Doutoramento | L6: Estagiar L
H7: Licenciado | J7: Bolsa de Investigação | L7: Estagiar +
J8: Bolsa de Iniciação Científica
